bitfinex/quotes_SOLUSD_20250527
["timestamp","ask_amount","ask_price","bid_price","bid_amount"]
[1748360048163,27.29449387,177.54,177.49,35.28]
[1748360048164,21.38033369,177.5,177.49,35.28]
[1748360048646,23.07047453,177.5,177.49,35.28]
[1748360050339,27.29582664,177.5,177.43,9.42]
[1748360050544,23.07085549,177.46,177.44,35.28]
[1748360050847,23.07085549,177.46,177.45,35.28]
[1748360052172,23.07085549,177.46,177.43,9.42]
[1748360052331,21.38033369,177.45,177.44,35.28]
[1748360052657,23.07095076,177.45,177.44,35.28]
[1748360052856,1.69061707,177.45,177.43,9.42]
[1748360053178,18.64964886,177.44,177.43,9.42]
[1748360053466,21.38033369,177.44,177.43,35.28]
[1748360053679,27.29749344,177.45,177.43,35.28]
[1748360054048,23.07095076,177.45,177.43,35.28]
[1748360054542,23.07095076,177.45,177.44,35.28]
[1748360056236,1.69061707,177.45,177.44,35.28]
[1748360056452,8.44880027,177.54,177.44,56.66033369]
[1748360056453,1.69014084,177.5,177.44,56.66033369]
[1748360056648,21.38033369,177.49,177.44,56.66033369]
[1748360056868,21.38033369,177.49,177.44,66.08033369]
[1748360057079,21.38033369,177.5,177.45,21.38033369]
[1748360057246,23.07056685,177.5,177.44,44.7]
[1748360057448,1.68985523,177.53,177.48,21.38033369]
[1748360057675,1.68985523,177.53,177.51,21.38033369]
[1748360058845,1.68966488,177.55,177.51,21.38033369]
[1748360061451,21.38033369,177.58,177.52,21.38033369]
[1748360061650,21.38033369,177.58,177.53,35.28]
[1748360061963,1.68956972,177.56,177.53,56.66033369]
[1748360063891,1.68947457,177.57,177.54,21.38033369]
[1748360064559,4.22265872,177.62,177.56,21.38033369]
[1748360064560,23.06942777,177.61,177.56,21.38033369]
[1748360064753,23.06942777,177.61,177.57,35.28]
[1748360064945,21.38033369,177.6,177.57,35.28]
[1748360065958,1.6892843,177.59,177.57,35.28]
[1748360066168,1.6892843,177.59,177.58,21.38033369]
[1748360066370,1.6892843,177.59,177.57,44.7]
[1748360066371,1.6892843,177.59,177.57,66.08033369]
[1748360066565,1.6892843,177.59,177.57,44.7]
[1748360066767,1.6892843,177.59,177.57,66.08033369]
[1748360069061,5.91160136,177.62,177.57,66.08033369]
[1748360071675,1.68899898,177.62,177.58,21.38033369]
[1748360072361,1.68899898,177.62,177.58,88.8]
[1748360072559,21.38033369,177.61,177.59,35.26]
[1748360072768,21.38033369,177.6,177.59,35.26]
[1748360072986,21.38033369,177.61,177.59,35.26]
[1748360073972,1.68918918,177.6,177.59,35.26]
[1748360075371,23.06952287,177.6,177.58,88.8]
[1748360075580,21.38033369,177.59,177.58,35.26]
[1748360075969,23.06961799,177.59,177.58,35.26]
[1748360076265,1.6892843,177.59,177.58,35.26]
[1748360076588,23.06961799,177.59,177.58,35.26]
[1748360079162,23.06961799,177.59,177.56,9.42]
[1748360079364,1.6892843,177.59,177.57,35.26]
[1748360081273,21.38033369,177.58,177.56,9.42]
[1748360081472,42.76066738,177.57,177.5,98.2]
[1748360081672,21.38033369,177.51,177.5,9.4]
[1748360082090,21.38033369,177.51,177.5,44.66]
[1748360082668,21.38033369,177.51,177.46,32.4603]
[1748360082885,21.38033369,177.48,177.47,35.26]
[1748360083375,1.6903313,177.48,177.47,35.26]
[1748360083898,23.07066499,177.48,177.45,90.44]
[1748360084071,21.38033369,177.46,177.45,9.4]
[1748360084271,21.38033369,177.46,177.45,44.66]
[1748360084800,21.38033369,177.46,177.45,9.4]
[1748360085126,21.38033369,177.46,177.45,44.66]
[1748360085270,23.07085549,177.46,177.45,44.66]
[1748360086702,1.6905218,177.46,177.45,44.66]
[1748360087075,1.6903313,177.48,177.45,44.66]
[1748360087293,23.01681307,177.52,177.45,44.66]
[1748360087294,21.38033369,177.5,177.45,66.04033369]
[1748360088004,21.38033369,177.49,177.45,44.66]
[1748360088303,1.6903313,177.48,177.45,44.66]
[1748360088508,1.6889039,177.63,177.49,6.6633]
[1748360088673,1.6889039,177.63,177.59,21.38033369]
[1748360088674,5.91116365,177.63,177.59,21.38033369]
[1748360088878,1.68842863,177.68,177.62,21.38033369]
[1748360089082,1.68842863,177.68,177.65,21.38033369]
[1748360089307,1.68842863,177.68,177.66,35.26]
[1748360089609,1.68842863,177.68,177.67,35.26]
[1748360089778,23.06876232,177.68,177.67,35.26]
[1748360089977,36.50315427,177.68,177.67,35.26]
[1748360090402,36.50315427,177.68,177.67,39.45317744]
[1748360090596,1.68842863,177.68,177.67,35.26]
[1748360091014,36.50315427,177.68,177.67,35.26]
[1748360091388,36.50315427,177.68,177.67,39.45200313]
[1748360091700,36.50315427,177.68,177.67,43.64416509]
[1748360091897,1.68842863,177.68,177.67,39.45200313]
[1748360092218,1.6882386,177.7,177.67,74.26672877]
[1748360092381,1.6882386,177.7,177.68,4.19014321]
[1748360092580,1.6882386,177.7,177.67,39.45200313]
[1748360092781,1.6882386,177.7,177.68,4.18881803]
[1748360092981,1.6882386,177.7,177.67,39.45200313]
[1748360093205,1.6882386,177.7,177.68,4.1881412]
[1748360093419,1.6882386,177.7,177.67,39.45200313]
[1748360093592,39.03494331,177.72,177.67,74.26672877]
[1748360093797,39.03494331,177.72,177.67,39.45200313]
[1748360093986,39.03494331,177.72,177.67,74.26672877]
[1748360094301,34.81472564,177.71,177.67,39.45200313]
[1748360095001,1.6882386,177.7,177.67,65.45200313]
[1748360095201,1.6882386,177.7,177.69,34.81472564]
[1748360095400,1.6882386,177.7,177.69,123.61472564]
[1748360096092,1.68795363,177.73,177.69,123.61472564]
[1748360096291,1.68795363,177.73,177.7,35.24]
[1748360096998,34.81472564,177.72,177.69,88.8]
[1748360097192,40.72256336,177.73,177.71,35.24]
[1748360097594,5.90783772,177.73,177.71,35.24]
[1748360099808,40.72256336,177.73,177.71,35.24]
[1748360100225,5.90783772,177.73,177.71,35.24]
[1748360100423,40.72256336,177.73,177.71,35.24]
[1748360101323,34.81472564,177.72,177.67,30.19200313]
[1748360101524,34.81472564,177.71,177.67,30.19200313]
[1748360101892,34.81472564,177.71,177.68,35.22]
[1748360102323,34.81472564,177.69,177.67,4.19200313]
[1748360102530,34.81472564,177.68,177.67,4.19200313]
[1748360102705,34.81472564,177.68,177.67,39.41200313]
[1748360104096,36.50315427,177.68,177.67,39.41200313]
[1748360105828,55.15280313,177.68,177.67,4.19200313]
[1748360106525,55.2949647,177.68,177.67,4.19200313]
[1748360108021,36.50400994,177.59,177.58,9.38]
[1748360108224,1.6892843,177.59,177.58,44.6]
[1748360108619,36.50400994,177.59,177.58,44.6]
[1748360109203,1.6892843,177.59,177.58,9.38]
[1748360109398,36.50400994,177.59,177.58,9.38]
[1748360109601,40.7272207,177.59,177.53,9.38]
[1748360109825,34.81472564,177.55,177.54,35.22]
[1748360110319,1.68976005,177.54,177.53,9.38]
[1748360110521,36.50448569,177.54,177.53,44.6]
[1748360111737,36.50448569,177.54,177.53,9.38]
[1748360111914,36.50448569,177.54,177.53,44.6]
[1748360112114,36.50448569,177.54,177.53,35.22]
[1748360112316,36.50448569,177.54,177.51,26.0]
[1748360112618,34.81472564,177.53,177.52,35.22]
[1748360113617,34.81472564,177.53,177.51,26.0]
[1748360113928,34.81472564,177.53,177.52,35.22]
[1748360114331,36.50458087,177.53,177.52,35.22]
[1748360114816,40.72921895,177.53,177.48,116.44]
[1748360115031,34.81472564,177.5,177.49,35.22]
[1748360115231,5.91449331,177.53,177.49,35.22]
[1748360115232,34.81472564,177.51,177.49,35.22]
[1748360115929,34.81472564,177.51,177.48,35.4]
[1748360116253,5.91449331,177.53,177.48,26.0]
[1748360116254,1.69023606,177.49,177.48,26.0]
[1748360116454,1.69023606,177.49,177.45,36.38692564]
[1748360116455,36.5049617,177.49,177.46,26.0]
[1748360116613,36.5049617,177.49,177.47,35.22]
[1748360117235,1.69023606,177.49,177.47,35.22]
[1748360118238,1.69014084,177.5,177.47,35.22]
[1748360118438,1.69014084,177.5,177.47,56.6259499]
[1748360118620,1.69014084,177.5,177.47,35.22]
[1748360120911,5.9142559,177.54,177.47,35.22]
[1748360121221,21.4059499,177.52,177.47,56.6259499]
[1748360121922,21.4059499,177.52,177.47,35.22]
[1748360122921,1.69004563,177.51,177.47,35.22]
[1748360123120,1.69004563,177.51,177.47,56.6259499]
[1748360124117,23.09599553,177.51,177.47,35.22]
[1748360124519,1.69004563,177.51,177.47,35.22]
[1748360124942,1.69004563,177.51,177.47,124.02]
[1748360126017,18.64964886,177.5,177.44,26.0]
[1748360126261,27.3211096,177.51,177.44,26.0]
[1748360126262,21.4059499,177.48,177.45,35.22]
[1748360126754,5.9151597,177.51,177.45,35.22]
[1748360126943,21.4059499,177.5,177.44,47.4059499]
[1748360127147,21.4059499,177.5,177.46,35.22]
[1748360127825,21.4059499,177.47,177.43,15.7526]
[1748360128041,21.4059499,177.45,177.43,9.38]
[1748360128229,1.69071235,177.44,177.43,9.38]
[1748360128453,1.6905218,177.46,177.43,66.0059499]
[1748360128754,1.69023606,177.49,177.45,47.4059499]
[1748360128958,1.69023606,177.49,177.46,21.4059499]
[1748360129119,1.69023606,177.49,177.47,35.22]
[1748360129320,1.69023606,177.49,177.47,56.6259499]
[1748360129725,21.4059499,177.48,177.43,98.18]
[1748360129927,21.4059499,177.48,177.44,35.24]
[1748360130170,1.69042655,177.47,177.44,35.24]
[1748360130525,1.69014084,177.5,177.45,21.4059499]
[1748360130850,23.09609074,177.5,177.45,21.4059499]
[1748360131151,1.69014084,177.5,177.47,21.4059499]
[1748360131322,1.69014084,177.5,177.48,35.24]
[1748360131943,27.32144285,177.5,177.41,6.2093]
[1748360132121,27.32144285,177.5,177.44,26.0]
[1748360132331,1.69014084,177.5,177.47,21.4059499]
[1748360132645,1.69014084,177.5,177.48,35.22]
[1748360133549,21.4059499,177.49,177.44,26.0]
[1748360133754,21.4059499,177.48,177.45,35.22]
[1748360134046,21.4059499,177.47,177.46,35.22]
[1748360134251,1.69042655,177.47,177.46,35.22]
[1748360135653,26.0,177.51,177.46,35.22]
[1748360135654,5.91349402,177.56,177.46,56.6259499]
[1748360135840,21.4059499,177.54,177.49,21.4059499]
[1748360136154,21.4059499,177.54,177.5,35.22]
[1748360136450,1.68985523,177.53,177.5,35.22]
[1748360137343,18.64964886,177.5,177.45,26.0]
[1748360137548,21.4059499,177.48,177.46,35.22]
[1748360137923,21.4059499,177.49,177.46,35.22]
[1748360138325,1.69023606,177.49,177.46,35.22]
[1748360140468,21.4059499,177.47,177.41,6.2093]
[1748360140754,21.4059499,177.42,177.4,35.22]
[1748360140922,44.79181043,177.46,177.4,35.22]
[1748360141126,21.4059499,177.44,177.4,35.22]
[1748360141371,47.4059499,177.46,177.4,56.6259499]
[1748360141655,21.4059499,177.44,177.4,35.22]
[1748360142443,1.69071235,177.44,177.41,21.4059499]
[1748360143661,21.4059499,177.47,177.42,21.4059499]
[1748360143662,1.6905218,177.46,177.42,21.4059499]
[1748360143839,1.6905218,177.46,177.43,21.4059499]
[1748360144033,1.6905218,177.46,177.44,35.22]
[1748360145054,0.14216157,177.51,177.44,35.22]
[1748360145055,34.89603598,177.51,177.45,34.89603598]
[1748360145232,34.89603598,177.51,177.45,123.69603598]
[1748360145852,36.58608161,177.51,177.45,123.69603598]
[1748360146052,1.69004563,177.51,177.48,34.89603598]
[1748360146362,1.69004563,177.51,177.49,35.24]
[1748360146859,36.58608161,177.51,177.49,35.24]
[1748360147368,1.69004563,177.51,177.49,70.13603598]
[1748360147656,36.58570086,177.55,177.49,70.13603598]
[1748360147857,34.89603598,177.54,177.49,35.24]
[1748360148739,1.68985523,177.53,177.49,35.24]
[1748360149653,34.89603598,177.59,177.52,34.89603598]
[1748360149863,34.89603598,177.59,177.53,70.11603598]
[1748360150051,34.89603598,177.58,177.53,70.11603598]
[1748360150751,1.68947457,177.57,177.53,35.22]
[1748360151075,1.68947457,177.57,177.5,98.18]
[1748360151076,34.89603598,177.54,177.52,35.22]
[1748360151270,34.89603598,177.53,177.52,35.22]
[1748360151874,34.89603598,177.53,177.48,26.0]
[1748360152177,34.89603598,177.51,177.49,35.22]
[1748360153043,1.69014084,177.5,177.41,169.86]
[1748360153247,34.89603598,177.48,177.43,34.89603598]
[1748360153552,34.89603598,177.48,177.42,70.11603598]
[1748360153762,34.89603598,177.48,177.43,34.89603598]
[1748360154071,34.89603598,177.49,177.43,34.89603598]
[1748360155280,34.89603598,177.49,177.44,34.89603598]
[1748360155281,1.6903313,177.48,177.44,34.89603598]
[1748360155667,1.6903313,177.48,177.46,34.89603598]
[1748360155851,1.6903313,177.48,177.47,35.22]
[1748360157199,1.69014084,177.5,177.47,35.22]
[1748360158451,34.89603598,177.49,177.47,35.22]
[1748360158655,34.89603598,177.48,177.41,124.18]
[1748360158856,34.89603598,177.49,177.44,34.89603598]
[1748360159060,1.6903313,177.48,177.45,34.89603598]
[1748360159268,1.6903313,177.48,177.46,35.22]
[1748360160253,34.89603598,177.47,177.42,88.8]
[1748360160579,34.89603598,177.47,177.43,35.22]
[1748360161091,1.6905218,177.46,177.42,123.69603598]
[1748360161254,1.6905218,177.46,177.44,35.22]
[1748360161874,40.81286229,177.46,177.41,98.18]
[1748360162076,34.89603598,177.45,177.42,35.22]
[1748360162353,34.89603598,177.45,177.43,35.22]
[1748360162573,34.89603598,177.45,177.44,35.22]
[1748360163279,36.58665305,177.45,177.44,35.22]
[1748360163465,40.81319573,177.45,177.41,98.18]
[1748360163671,40.81319573,177.45,177.42,35.22]
[1748360165075,5.91715975,177.45,177.43,35.22]
[1748360165377,1.69042655,177.47,177.44,34.89603598]
[1748360165562,1.69042655,177.47,177.45,34.89603598]
[1748360165768,1.69042655,177.47,177.46,35.22]
[1748360166678,4.22593352,177.48,177.46,35.22]
[1748360166887,34.89603598,177.47,177.42,26.0]
[1748360167066,34.89603598,177.46,177.45,35.22]
[1748360167271,28.79106526,177.49,177.45,35.22]
[1748360167272,1.69023606,177.49,177.45,70.11603598]
[1748360167468,1.69023606,177.49,177.47,34.89603598]
[1748360167777,1.69023606,177.49,177.48,35.22]
[1748360169362,1.69014084,177.5,177.48,35.22]
[1748360170160,18.64964886,177.48,177.47,35.22]
[1748360170366,53.54568484,177.48,177.47,35.22]
[1748360171095,53.68784641,177.48,177.45,35.22]
[1748360171391,36.58655778,177.46,177.45,35.22]
[1748360172300,36.58655778,177.46,177.42,26.0]
[1748360172301,40.81286229,177.46,177.42,26.0]
[1748360172500,34.89603598,177.45,177.43,35.22]
[1748360172676,5.91682631,177.46,177.41,9.38]
[1748360172677,40.81286229,177.46,177.41,44.27603598]
[1748360172876,40.81286229,177.46,177.44,35.22]
[1748360173466,40.81286229,177.46,177.41,44.27603598]
[1748360173779,40.81286229,177.46,177.44,35.22]
[1748360174079,34.89603598,177.45,177.44,35.22]
[1748360174897,5.91682631,177.46,177.44,35.22]
[1748360176070,4.22630451,177.46,177.44,35.22]
[1748360176415,39.12234049,177.46,177.44,35.22]
[1748360176565,39.12234049,177.46,177.41,44.27603598]
[1748360176566,4.22630451,177.46,177.41,9.38]
[1748360176770,4.22630451,177.46,177.42,35.22]
[1748360177812,36.58674833,177.44,177.42,35.22]
[1748360178111,34.89603598,177.43,177.39,27.6658]
[1748360178264,5.91749323,177.44,177.36,179.20896711]
[1748360178265,34.89603598,177.41,177.37,26.0]
[1748360178581,34.89603598,177.41,177.38,35.22]
[1748360178906,34.89603598,177.41,177.37,114.8]
[1748360179065,34.89603598,177.41,177.38,35.22]
[1748360179396,34.89603598,177.41,177.39,35.22]
[1748360180088,21.42913074,177.41,177.37,114.8]
[1748360180264,21.42913074,177.41,177.4,35.22]
[1748360181088,27.34695748,177.43,177.4,35.22]
[1748360181467,1.69080764,177.43,177.41,35.22]
[1748360182269,23.11993838,177.43,177.41,35.22]
[1748360182717,1.69080764,177.43,177.41,35.22]
[1748360184487,1.69080764,177.43,177.41,56.64913074]
[1748360184672,1.69080764,177.43,177.41,35.22]
[1748360186104,1.69071235,177.44,177.41,35.22]
[1748360187489,1.69071235,177.44,177.41,145.44913074]
[1748360188708,1.69061707,177.45,177.41,145.44913074]
[1748360189206,1.69061707,177.45,177.42,21.42913074]
[1748360189776,4.22638008,177.46,177.42,21.42913074]
[1748360189977,1.69042655,177.47,177.46,26.0]
[1748360190279,40.0787796,177.54,177.46,82.64913074]
[1748360190480,40.0787796,177.54,177.49,21.42913074]
[1748360190689,40.0787796,177.54,177.5,35.22]
[1748360191000,27.34295782,177.55,177.5,56.64913074]
[1748360192605,5.91382708,177.55,177.51,21.42913074]
[1748360192914,21.42913074,177.54,177.5,56.64913074]
[1748360194093,21.42913074,177.53,177.5,35.22]
[1748360194397,21.42913074,177.52,177.5,35.22]
[1748360194796,21.42913074,177.52,177.46,88.8]
[1748360194797,21.42913074,177.51,177.47,26.0]
[1748360194975,21.42913074,177.51,177.43,15.7555]
[1748360194976,21.42913074,177.48,177.43,15.7555]
[1748360195181,21.42913074,177.46,177.44,35.2]
[1748360195603,21.42913074,177.47,177.44,35.2]
[1748360196105,1.69042655,177.47,177.44,56.62913074]
[1748360196404,1.69042655,177.47,177.46,26.0]
[1748360197805,1.69023606,177.49,177.47,26.0]
[1748360197981,1.69023606,177.49,177.48,35.2]
[1748360198922,1.69004563,177.51,177.48,35.2]
[1748360199505,1.68976005,177.54,177.5,47.42913074]
[1748360199707,1.68976005,177.54,177.53,26.0]
[1748360199889,1.68976005,177.54,177.53,61.2]
[1748360200914,5.91397399,177.55,177.53,61.2]
[1748360201093,1.68966488,177.55,177.53,61.2]
[1748360202691,1.68956972,177.56,177.53,61.2]
[1748360204214,1.68956972,177.56,177.53,96.05944836]
[1748360204423,1.68956972,177.56,177.55,34.85944836]
[1748360204724,1.68918918,177.6,177.58,26.0]
[1748360204894,1.68918918,177.6,177.59,35.2]
[1748360206920,5.91198522,177.61,177.59,35.2]
[1748360208322,4.22289114,177.61,177.59,35.2]
[1748360209193,34.85944836,177.6,177.59,35.2]
[1748360209721,18.64964886,177.59,177.55,9.34]
[1748360209924,34.85944836,177.56,177.55,9.34]
[1748360210100,36.54901808,177.56,177.55,70.52]
[1748360210706,1.68956972,177.56,177.55,70.52]
[1748360211814,5.91182928,177.61,177.58,26.0]
[1748360212019,5.91182928,177.61,177.59,35.18]
[1748360212224,40.77127764,177.61,177.59,35.18]
[1748360212912,5.91182928,177.61,177.59,35.18]
[1748360213497,40.77127764,177.61,177.59,35.18]
[1748360215896,5.91182928,177.61,177.59,35.18]
[1748360216099,4.22209761,177.64,177.6,34.85944836]
[1748360216402,1.6886187,177.66,177.62,34.85944836]
[1748360216710,5.91016547,177.66,177.63,35.18]
[1748360217812,5.91016547,177.66,177.63,70.03944836]
[1748360218609,5.91016547,177.66,177.63,35.18]
[1748360219418,34.85944836,177.67,177.63,35.18]
[1748360220502,1.6886187,177.66,177.63,35.18]
[1748360220934,1.6886187,177.66,177.64,34.85944836]
[1748360221104,1.6886187,177.66,177.65,34.85944836]
[1748360221304,1.6886187,177.66,177.64,60.85944836]
[1748360221602,1.6886187,177.66,177.65,34.85944836]
[1748360221808,1.68842863,177.68,177.65,60.85944836]
[1748360222018,1.68842863,177.68,177.66,70.01944836]
[1748360222235,4.22025859,177.72,177.67,34.85944836]
[1748360222441,18.64964886,177.74,177.7,34.85944836]
[1748360222442,1.68785866,177.74,177.7,34.85944836]
[1748360222622,1.68785866,177.74,177.71,35.16]
[1748360222931,36.54730702,177.74,177.71,35.16]
[1748360223606,1.68785866,177.74,177.71,35.16]
[1748360224009,23.03356287,177.74,177.71,35.16]
[1748360224218,1.68785866,177.74,177.73,47.34570421]
[1748360224527,27.25196533,177.78,177.73,47.34570421]
[1748360224736,5.90626112,177.78,177.74,56.50570421]
[1748360224939,27.25196533,177.78,177.74,35.16]
[1748360225405,1.6874789,177.78,177.75,21.34570421]
[1748360226019,1.6874789,177.78,177.75,34.76600188]
[1748360226740,1.68738399,177.79,177.76,34.76600188]
[1748360226921,1.68738399,177.79,177.77,35.14]
[1748360227236,1.5475,177.87,177.78,34.76600188]
[1748360227411,4.21739155,177.84,177.77,35.14]
[1748360227612,34.76600188,177.81,177.77,35.14]
[1748360227851,34.76600188,177.82,177.77,35.14]
[1748360228035,34.76600188,177.81,177.77,35.14]
[1748360228437,34.76600188,177.82,177.77,69.90600188]
[1748360228624,1.68719419,177.81,177.77,69.90600188]
[1748360229129,1.68719419,177.81,177.77,35.14]
[1748360229454,1.68719419,177.81,177.77,69.90600188]
[1748360230819,36.45319607,177.81,177.77,35.14]
[1748360231844,4.21739155,177.84,177.77,69.90600188]
[1748360232051,34.76600188,177.82,177.77,69.90600188]
[1748360232356,34.76600188,177.81,177.77,35.14]
[1748360232524,34.76600188,177.82,177.77,35.14]
[1748360233049,38.98339343,177.84,177.78,34.76600188]
[1748360233234,38.98339343,177.84,177.79,34.76600188]
[1748360233439,34.76600188,177.83,177.79,9.34]
[1748360233635,4.21739155,177.84,177.79,9.34]
[1748360233636,34.76600188,177.82,177.79,9.34]
[1748360234045,1.68719419,177.81,177.79,9.34]
[1748360234554,34.76600188,177.8,177.73,7.9792]
[1748360234730,34.76600188,177.76,177.74,35.12]
[1748360234930,34.76600188,177.77,177.75,35.12]
[1748360235126,34.76600188,177.78,177.75,35.12]
[1748360235327,34.76600188,177.76,177.73,17.3192]
[1748360235828,34.76600188,177.76,177.74,35.12]
[1748360236054,1.68776371,177.75,177.74,35.12]
[1748360237246,36.45376559,177.75,177.74,35.12]
[1748360238053,1.68776371,177.75,177.73,17.3192]
[1748360238246,1.68776371,177.75,177.74,35.12]
[1748360238672,1.68776371,177.75,177.73,9.34]
[1748360238827,1.68776371,177.75,177.74,35.12]
[1748360239236,36.45376559,177.75,177.74,35.12]
[1748360242943,36.45376559,177.75,177.73,9.34]
[1748360243145,34.76600188,177.74,177.68,9.32]
[1748360243454,34.76600188,177.7,177.69,35.12]
[1748360243869,34.76600188,177.71,177.69,35.12]
[1748360244363,34.76600188,177.71,177.68,9.32]
[1748360244364,1.6882386,177.7,177.68,9.32]
[1748360244567,1.6882386,177.7,177.69,35.12]
[1748360244967,4.21940928,177.75,177.69,35.12]
[1748360244968,1.68811387,177.72,177.69,35.12]
[1748360245268,36.45411575,177.72,177.69,35.12]
[1748360245963,1.68811387,177.72,177.69,35.12]
[1748360247064,23.03963089,177.72,177.69,35.12]
[1748360249264,23.03963089,177.72,177.69,123.92]
[1748360249655,1.68811387,177.72,177.69,123.92]
[1748360249852,1.68757383,177.77,177.71,21.35151702]
[1748360250072,1.68757383,177.77,177.73,21.35151702]
[1748360250255,1.68757383,177.77,177.71,88.8]
[1748360250256,23.03909085,177.77,177.74,35.12]
[1748360250567,1.68757383,177.77,177.74,35.12]
[1748360251559,1.68728908,177.8,177.75,21.35151702]
[1748360251764,23.0388061,177.8,177.74,65.79151702]
[1748360251972,21.35151702,177.79,177.74,65.79151702]
[1748360252161,21.35151702,177.78,177.74,44.44]
[1748360253474,23.03909085,177.77,177.74,44.44]
[1748360254174,1.68757383,177.77,177.74,70.44]
[1748360254676,23.03909085,177.77,177.75,35.12]
[1748360255558,21.35151702,177.76,177.75,35.12]
[1748360257979,1.68776371,177.75,177.74,9.32]
[1748360258274,23.03928073,177.75,177.74,44.44]
[1748360260486,23.03928073,177.75,177.74,35.12]
[1748360260792,10.0,177.85,177.74,35.12]
[1748360260793,1.68690958,177.84,177.74,35.12]
[1748360261092,21.35151702,177.82,177.76,21.35151702]
[1748360261257,21.35151702,177.81,177.76,21.35151702]
[1748360261458,21.35151702,177.81,177.75,30.67151702]
[1748360261682,1.68690958,177.84,177.75,30.67151702]
[1748360262054,21.35151702,177.81,177.75,30.67151702]
[1748360262262,21.35151702,177.81,177.76,5.62556255]
[1748360262577,21.35151702,177.81,177.76,26.97707957]
[1748360262884,21.35151702,177.79,177.75,9.32]
[1748360263088,21.35151702,177.8,177.75,9.32]
[1748360263384,21.35151702,177.8,177.75,30.67151702]
[1748360263586,21.35151702,177.79,177.75,9.32]
[1748360263789,21.35151702,177.76,177.72,9.32]
[1748360264263,23.03926731,177.76,177.73,35.1]
[1748360264862,21.35151702,177.74,177.72,9.32]
[1748360265072,5.9069222,177.76,177.72,9.32]
[1748360265309,5.9069222,177.76,177.73,35.1]
[1748360265310,21.35151702,177.75,177.73,35.1]
[1748360265657,23.03926731,177.76,177.73,35.1]
[1748360266063,21.35151702,177.74,177.73,35.1]
[1748360266258,23.03937568,177.74,177.73,35.1]
[1748360266479,23.03937568,177.74,177.67,30.67151702]
[1748360266671,21.35151702,177.72,177.68,35.1]
[1748360269265,23.03961908,177.72,177.67,30.67151702]
[1748360269466,23.03961908,177.72,177.68,35.1]
[1748360269766,1.68797467,177.73,177.68,56.45151702]
[1748360269983,23.0393522,177.75,177.7,21.35151702]
[1748360270499,23.0393522,177.75,177.69,21.35151702]
[1748360270665,21.35151702,177.84,177.68,61.1]
[1748360270666,23.03899592,177.78,177.72,21.35151702]
[1748360270994,22.86755159,177.82,177.72,21.35151702]
[1748360270995,23.03892793,177.79,177.74,21.35151702]
[1748360271285,23.03892793,177.79,177.73,44.42]
[1748360271485,21.35151702,177.77,177.73,44.42]
[1748360271671,1.68753492,177.78,177.73,65.77151702]
[1748360272976,23.03905194,177.78,177.73,65.77151702]
[1748360275381,1.68753492,177.78,177.74,21.35151702]
[1748360276996,23.038921,177.79,177.74,21.35151702]
[1748360278607,23.03871121,177.81,177.75,21.35151702]
[1748360279780,21.35151702,177.8,177.75,21.35151702]
[1748360280797,1.68700444,177.83,177.79,21.35151702]
[1748360280997,21.35151702,177.84,177.8,35.1]
[1748360281178,1.68694854,177.84,177.8,35.1]
[1748360281380,1.68662506,177.87,177.8,35.1]
[1748360281698,21.35151702,177.85,177.8,145.25151702]
[1748360281895,23.03842332,177.85,177.8,145.25151702]
[1748360282096,23.03842332,177.85,177.8,123.9]
[1748360282479,21.35151702,177.83,177.8,123.9]
[1748360283280,21.35151702,177.84,177.8,123.9]
[1748360283970,23.03851042,177.84,177.8,123.9]
[1748360284174,1.6869934,177.84,177.8,123.9]
[1748360285183,23.03851042,177.84,177.8,123.9]
[1748360287588,21.35151702,177.83,177.8,35.1]
[1748360287975,21.35151702,177.81,177.79,88.8]
[1748360288207,21.35151702,177.8,177.75,123.9]
[1748360288381,21.35151702,177.77,177.75,88.8]
[1748360288581,72.0475948,177.84,177.71,21.35151702]
[1748360288582,21.35151702,177.76,177.71,21.35151702]
[1748360288779,80.4821427,177.84,177.72,56.45151702]
[1748360288780,21.35151702,177.77,177.72,56.45151702]
[1748360289308,21.35151702,177.79,177.73,21.35151702]